[Event "Early-Titled-Tuesday-Blitz-April-23-2024"]
[Site "Chess.com"]
[Date "2024.04.23"]
[Round "6"]
[White "Artem_Koval"]
[Black "Matols"]
[Result "1-0"]
[WhiteElo "2545"]
[BlackElo "2372"]
[TimeControl "180+1"]
[EndTime "9:10:13 PDT"]
[Termination "Artem_Koval won on time"]

1. d4 {[%clk 0:03:00.9]} 1... d5 {[%clk 0:02:59.4]} 2. Bf4 {[%clk 0:03:00]} 2...
Nf6 {[%clk 0:02:59.1]} 3. e3 {[%clk 0:03:00.6]} 3... c5 {[%clk 0:02:59.5]} 4. c3
{[%clk 0:03:01.2]} 4... Nc6 {[%clk 0:03:00.1]} 5. Nd2 {[%clk 0:03:01.4]} 5...
Bg4 {[%clk 0:03:00.2]} 6. Qb3 {[%clk 0:03:00.5]} 6... Qc8 {[%clk 0:02:49]} 7.
Ngf3 {[%clk 0:03:00.4]} 7... e6 {[%clk 0:02:45.5]} 8. Ne5 {[%clk 0:03:00.1]}
8... Nxe5 {[%clk 0:02:33.3]} 9. dxe5 {[%clk 0:02:51.1]} 9... Nd7 {[%clk
0:02:32.5]} 10. c4 {[%clk 0:02:51.7]} 10... Be7 {[%clk 0:02:12.2]} 11. cxd5
{[%clk 0:02:41.6]} 11... exd5 {[%clk 0:02:13.1]} 12. Qxd5 {[%clk 0:02:41.4]}
12... Be6 {[%clk 0:02:13.6]} 13. Qf3 {[%clk 0:02:35.8]} 13... O-O {[%clk
0:02:12.6]} 14. Bd3 {[%clk 0:02:33]} 14... c4 {[%clk 0:02:10.4]} 15. Bc2 {[%clk
0:02:29.8]} 15... c3 {[%clk 0:02:09.2]} 16. bxc3 {[%clk 0:02:08.5]} 16... Qxc3
{[%clk 0:02:10.1]} 17. Rc1 {[%clk 0:02:09.1]} 17... g6 {[%clk 0:01:41.6]} 18. e4
{[%clk 0:01:57.8]} 18... Rac8 {[%clk 0:01:31.7]} 19. Qxc3 {[%clk 0:01:07.5]}
19... Rxc3 {[%clk 0:01:32.6]} 20. Nb1 {[%clk 0:01:08.1]} 20... Rc5 {[%clk
0:01:09.5]} 21. O-O {[%clk 0:00:51.6]} 21... Nxe5 {[%clk 0:01:06.3]} 22. Be3
{[%clk 0:00:50.3]} 22... Rcc8 {[%clk 0:00:47.2]} 23. Bb3 {[%clk 0:00:38.9]}
23... Bxb3 {[%clk 0:00:38]} 24. axb3 {[%clk 0:00:39.8]} 24... b6 {[%clk
0:00:35.4]} 25. Nd2 {[%clk 0:00:31.9]} 25... Nd3 {[%clk 0:00:21.4]} 26. Ra1
{[%clk 0:00:31.6]} 26... Rc7 {[%clk 0:00:20.8]} 27. Nc4 {[%clk 0:00:29.7]} 27...
Bf6 {[%clk 0:00:18.7]} 28. Ra6 {[%clk 0:00:19.9]} 28... Nb4 {[%clk 0:00:18.1]}
29. Ra4 {[%clk 0:00:17.8]} 29... Nc2 {[%clk 0:00:17.9]} 30. Bf4 {[%clk
0:00:15.5]} 30... Rd7 {[%clk 0:00:17.5]} 31. Ra2 {[%clk 0:00:14.7]} 31... Nb4
{[%clk 0:00:17.1]} 32. Re2 {[%clk 0:00:13.3]} 32... Rfd8 {[%clk 0:00:16.3]} 33.
e5 {[%clk 0:00:09.9]} 33... Bg7 {[%clk 0:00:16.4]} 34. e6 {[%clk 0:00:07.8]}
34... fxe6 {[%clk 0:00:17.3]} 35. Rxe6 {[%clk 0:00:08.5]} 35... Kf7 {[%clk
0:00:16.5]} 36. Re4 {[%clk 0:00:02.6]} 36... Rd1 {[%clk 0:00:16.5]} 37. h4
{[%clk 0:00:02.7]} 37... Rxf1+ {[%clk 0:00:16.2]} 38. Kxf1 {[%clk 0:00:03.6]}
38... Nc2 {[%clk 0:00:16.2]} 39. Nd6+ {[%clk 0:00:01.7]} 39... Kg8 {[%clk
0:00:14.5]} 40. Nc4 {[%clk 0:00:01.9]} 40... Nd4 {[%clk 0:00:12.1]} 41. Bg5
{[%clk 0:00:01.9]} 41... Rd7 {[%clk 0:00:11.3]} 42. Re8+ {[%clk 0:00:02]} 42...
Kf7 {[%clk 0:00:11.4]} 43. Ra8 {[%clk 0:00:02.6]} 43... Nf5 {[%clk 0:00:10.2]}
44. g4 {[%clk 0:00:02.6]} 44... Nd4 {[%clk 0:00:09.3]} 45. h5 {[%clk 0:00:03.1]}
45... gxh5 {[%clk 0:00:09]} 46. gxh5 {[%clk 0:00:04]} 46... Nb5 {[%clk
0:00:08.8]} 47. h6 {[%clk 0:00:04.5]} 47... Bc3 {[%clk 0:00:08.6]} 48. Kg2
{[%clk 0:00:03.7]} 48... Kg6 {[%clk 0:00:08.8]} 49. Be3 {[%clk 0:00:03.6]} 49...
Kf5 {[%clk 0:00:08]} 50. Rf8+ {[%clk 0:00:02.8]} 50... Ke4 {[%clk 0:00:07.7]}
51. Re8+ {[%clk 0:00:03.5]} 51... Kd3 {[%clk 0:00:07.7]} 52. Rf8 {[%clk
0:00:02.6]} 52... Kc2 {[%clk 0:00:07.7]} 53. Kf3 {[%clk 0:00:01.9]} 53... Kxb3
{[%clk 0:00:07.5]} 54. Nd2+ {[%clk 0:00:02.1]} 54... Bxd2 {[%clk 0:00:07]} 55.
Bxd2 {[%clk 0:00:03]} 55... Rxd2 {[%clk 0:00:07.4]} 56. Rf7 {[%clk 0:00:03.9]}
56... Rd3+ {[%clk 0:00:06.6]} 57. Ke2 {[%clk 0:00:04.2]} 57... Rh3 {[%clk
0:00:06.8]} 58. Rxh7 {[%clk 0:00:04.4]} 58... Nd4+ {[%clk 0:00:07.1]} 59. Kf1
{[%clk 0:00:04.3]} 59... Nf5 {[%clk 0:00:07.7]} 60. Kg2 {[%clk 0:00:04.6]} 60...
Rxh6 {[%clk 0:00:07.4]} 61. Rxa7 {[%clk 0:00:05.5]} 61... b5 {[%clk 0:00:07.2]}
62. Kf3 {[%clk 0:00:05.9]} 62... b4 {[%clk 0:00:06.9]} 63. Kg4 {[%clk
0:00:06.8]} 63... Nd4 {[%clk 0:00:07.1]} 64. Kg5 {[%clk 0:00:07.7]} 64... Rh2
{[%clk 0:00:06.7]} 65. f4 {[%clk 0:00:08.6]} 65... Rf2 {[%clk 0:00:07]} 66. Rd7
{[%clk 0:00:08.2]} 66... Nc2 {[%clk 0:00:05.6]} 67. f5 {[%clk 0:00:08.3]} 67...
Kb2 {[%clk 0:00:03.9]} 68. f6 {[%clk 0:00:08.7]} 68... Ne3 {[%clk 0:00:03.5]}
69. Rd3 {[%clk 0:00:07.5]} 69... Nc4 {[%clk 0:00:02.7]} 70. Rd4 {[%clk
0:00:07.4]} 70... Kc3 {[%clk 0:00:01.5]} 71. Rh4 {[%clk 0:00:04.2]} 71... b3
{[%clk 0:00:01.2]} 72. Rh3+ {[%clk 0:00:05.1]} 72... Kc2 {[%clk 0:00:01]} 73.
Rh4 {[%clk 0:00:05.1]} 1-0

[Event "Early-Titled-Tuesday-Blitz-April-23-2024"]
[Site "Chess.com"]
[Date "2024.04.23"]
[Round "6"]
[White "GMG"]
[Black "Sam_ChessMood"]
[Result "0-1"]
[WhiteElo "2775"]
[BlackElo "2968"]
[TimeControl "180+1"]
[EndTime "9:10:14 PDT"]
[Termination "Sam_ChessMood won on time"]

1. Nf3 {[%clk 0:02:57.1]} 1... d5 {[%clk 0:02:59.5]} 2. g3 {[%clk 0:02:57.2]}
2... g6 {[%clk 0:02:58.9]} 3. c4 {[%clk 0:02:54.4]} 3... dxc4 {[%clk 0:02:58.3]}
4. Na3 {[%clk 0:02:54.4]} 4... Bg7 {[%clk 0:02:57.6]} 5. Nxc4 {[%clk 0:02:54.4]}
5... Nc6 {[%clk 0:02:57.8]} 6. d3 {[%clk 0:02:52.9]} 6... e5 {[%clk 0:02:57.8]}
7. Bd2 {[%clk 0:02:46.6]} 7... Nf6 {[%clk 0:02:57.9]} 8. Bg2 {[%clk 0:02:44]}
8... e4 {[%clk 0:02:47]} 9. dxe4 {[%clk 0:02:44.9]} 9... Nxe4 {[%clk 0:02:46.2]}
10. Bf4 {[%clk 0:02:41]} 10... O-O {[%clk 0:02:27.7]} 11. Qxd8 {[%clk 0:02:24]}
11... Rxd8 {[%clk 0:02:27.3]} 12. Bxc7 {[%clk 0:02:24.4]} 12... Re8 {[%clk
0:02:25.7]} 13. O-O {[%clk 0:02:07.5]} 13... Be6 {[%clk 0:02:20.6]} 14. Rac1
{[%clk 0:02:07]} 14... Rac8 {[%clk 0:02:13]} 15. Nd6 {[%clk 0:01:57.8]} 15...
Nxd6 {[%clk 0:02:10.3]} 16. Bxd6 {[%clk 0:01:58.7]} 16... Bxb2 {[%clk
0:01:48.1]} 17. Rb1 {[%clk 0:01:56]} 17... Bf6 {[%clk 0:01:43.9]} 18. Rxb7
{[%clk 0:01:50.3]} 18... Bxa2 {[%clk 0:01:43.7]} 19. e3 {[%clk 0:01:28.2]} 19...
a5 {[%clk 0:01:43.5]} 20. Bh3 {[%clk 0:01:24.2]} 20... Ra8 {[%clk 0:01:08]} 21.
Rd1 {[%clk 0:01:16.2]} 21... Red8 {[%clk 0:01:03.7]} 22. Bd7 {[%clk 0:01:05.5]}
22... Nb4 {[%clk 0:00:39.4]} 23. Bxb4 {[%clk 0:00:40.8]} 23... axb4 {[%clk
0:00:40.3]} 24. Rxb4 {[%clk 0:00:41.3]} 24... Be6 {[%clk 0:00:27.4]} 25. Rb7
{[%clk 0:00:40.3]} 25... Bh3 {[%clk 0:00:21.4]} 26. Kh1 {[%clk 0:00:30]} 26...
Ra2 {[%clk 0:00:18.9]} 27. Ng1 {[%clk 0:00:20.1]} 27... Bf5 {[%clk 0:00:14.1]}
28. Bxf5 {[%clk 0:00:09.7]} 28... Rxd1 {[%clk 0:00:13.5]} 29. Bg4 {[%clk
0:00:09]} 29... Rdd2 {[%clk 0:00:13.4]} 30. Nh3 {[%clk 0:00:08.8]} 30... h5
{[%clk 0:00:12.7]} 31. Bc8 {[%clk 0:00:07.1]} 31... Bc3 {[%clk 0:00:11.2]} 32.
Kg2 {[%clk 0:00:06.8]} 32... Re2 {[%clk 0:00:11]} 33. Rb1 {[%clk 0:00:06.1]}
33... Rxe3 {[%clk 0:00:10.4]} 34. Bb7 {[%clk 0:00:03.9]} 34... Bd4 {[%clk
0:00:09.5]} 35. Bd5 {[%clk 0:00:04]} 35... Rd2 {[%clk 0:00:09]} 36. Rb8+ {[%clk
0:00:03.4]} 36... Kg7 {[%clk 0:00:08.5]} 37. Rb7 {[%clk 0:00:04.1]} 37... Re5
{[%clk 0:00:05.3]} 38. Bxf7 {[%clk 0:00:04]} 38... Kh6 {[%clk 0:00:04.7]} 39.
Bc4 {[%clk 0:00:03]} 39... Re8 {[%clk 0:00:03.6]} 40. Bf7 {[%clk 0:00:03]} 40...
Rf8 {[%clk 0:00:03.6]} 41. Rd7 {[%clk 0:00:01.3]} 41... Bc3 {[%clk 0:00:03.2]}
42. Rxd2 {[%clk 0:00:01.4]} 42... Bxd2 {[%clk 0:00:04.1]} 43. Bd5 {[%clk
0:00:01.9]} 43... Bc3 {[%clk 0:00:04.4]} 44. f4 {[%clk 0:00:02.3]} 44... Bd4
{[%clk 0:00:04.7]} 45. Kf3 {[%clk 0:00:02.7]} 45... Rb8 {[%clk 0:00:04.8]} 46.
Ng5 {[%clk 0:00:03.1]} 46... Rb5 {[%clk 0:00:03.9]} 47. Nf7+ {[%clk 0:00:02.6]}
47... Kg7 {[%clk 0:00:03.6]} 48. Ke4 {[%clk 0:00:03.5]} 48... Ra5 {[%clk
0:00:03]} 49. Kxd4 {[%clk 0:00:02.4]} 49... Ra4+ {[%clk 0:00:03.5]} 50. Bc4
{[%clk 0:00:02.8]} 50... Ra1 {[%clk 0:00:03.4]} 51. h4 {[%clk 0:00:03]} 51...
Rg1 {[%clk 0:00:03.3]} 52. Ng5 {[%clk 0:00:02.7]} 52... Rxg3 {[%clk 0:00:03.5]}
53. Ke4 {[%clk 0:00:03.2]} 53... Rg4 {[%clk 0:00:03.9]} 54. Ne6+ {[%clk
0:00:02.8]} 54... Kf6 {[%clk 0:00:04.1]} 55. Nd4 {[%clk 0:00:02.9]} 55... Rxh4
{[%clk 0:00:04.4]} 56. Nf3 {[%clk 0:00:03.3]} 56... Rh1 {[%clk 0:00:04.4]} 57.
Ke3 {[%clk 0:00:03.9]} 57... Rc1 {[%clk 0:00:04.2]} 58. Bd3 {[%clk 0:00:03.9]}
58... Rc3 {[%clk 0:00:04.3]} 59. Kd2 {[%clk 0:00:03.9]} 59... Ra3 {[%clk
0:00:04.4]} 60. Ne5 {[%clk 0:00:04.2]} 60... Ra4 {[%clk 0:00:03.2]} 61. Ke3
{[%clk 0:00:04.2]} 61... Ra3 {[%clk 0:00:03.7]} 62. Ke2 {[%clk 0:00:04.1]} 62...
h4 {[%clk 0:00:03.3]} 63. Bxg6 {[%clk 0:00:03.6]} 63... h3 {[%clk 0:00:03.1]}
64. Be4 {[%clk 0:00:03.8]} 64... Ke6 {[%clk 0:00:02.1]} 65. Ng4 {[%clk
0:00:03.9]} 65... Ra2+ {[%clk 0:00:01.7]} 66. Kf1 {[%clk 0:00:04.1]} 66... Rb2
{[%clk 0:00:01.7]} 67. Nf2 {[%clk 0:00:04.3]} 67... h2 {[%clk 0:00:02]} 68. Kg2
{[%clk 0:00:04.7]} 68... h1=Q+ {[%clk 0:00:02.3]} 69. Kxh1 {[%clk 0:00:05.1]}
69... Rxf2 {[%clk 0:00:03]} 70. Kg1 {[%clk 0:00:04.3]} 70... Rxf4 {[%clk
0:00:02.8]} 71. Bg2 {[%clk 0:00:04.1]} 71... Ke5 {[%clk 0:00:03.7]} 72. Kh2
{[%clk 0:00:04.5]} 72... Kd4 {[%clk 0:00:04.3]} 73. Kg3 {[%clk 0:00:04.9]} 73...
Ke3 {[%clk 0:00:05]} 74. Bh3 {[%clk 0:00:05.4]} 74... Rf6 {[%clk 0:00:05.2]} 75.
Bg4 {[%clk 0:00:05.8]} 75... Rg6 {[%clk 0:00:05.7]} 76. Kh4 {[%clk 0:00:05]}
76... Kf4 {[%clk 0:00:06]} 77. Bh5 {[%clk 0:00:03.3]} 77... Rh6 {[%clk
0:00:06.3]} 0-1

[Event "Early-Titled-Tuesday-Blitz-April-23-2024"]
[Site "Chess.com"]
[Date "2024.04.23"]
[Round "6"]
[White "Ramla2020"]
[Black "AlainBruxelles"]
[Result "0-1"]
[WhiteElo "2500"]
[BlackElo "2355"]
[TimeControl "180+1"]
[EndTime "9:10:25 PDT"]
[Termination "AlainBruxelles won by checkmate"]

1. c4 {[%clk 0:02:58.8]} 1... Nf6 {[%clk 0:02:59.2]} 2. g3 {[%clk 0:02:58.6]}
2... c5 {[%clk 0:02:58.6]} 3. Bg2 {[%clk 0:02:58.3]} 3... Nc6 {[%clk 0:02:59.3]}
4. Nc3 {[%clk 0:02:57.8]} 4... g6 {[%clk 0:02:56.7]} 5. e3 {[%clk 0:02:57.7]}
5... Bg7 {[%clk 0:02:56.4]} 6. d4 {[%clk 0:02:57.6]} 6... cxd4 {[%clk
0:02:50.7]} 7. exd4 {[%clk 0:02:57.3]} 7... O-O {[%clk 0:02:51.2]} 8. Nge2
{[%clk 0:02:56.9]} 8... d6 {[%clk 0:02:46.6]} 9. h3 {[%clk 0:02:55.9]} 9... a6
{[%clk 0:02:42.5]} 10. O-O {[%clk 0:02:56.8]} 10... Qc7 {[%clk 0:02:42.4]} 11.
b3 {[%clk 0:02:55.1]} 11... Bd7 {[%clk 0:02:40.9]} 12. Be3 {[%clk 0:02:54.6]}
12... Rab8 {[%clk 0:02:41]} 13. Rc1 {[%clk 0:02:54.3]} 13... Rfc8 {[%clk
0:02:41.3]} 14. Nd5 {[%clk 0:02:48.9]} 14... Qd8 {[%clk 0:02:39]} 15. Nef4
{[%clk 0:02:38.8]} 15... Nxd5 {[%clk 0:02:32.8]} 16. cxd5 {[%clk 0:02:34.7]}
16... Na7 {[%clk 0:02:27.8]} 17. Qd2 {[%clk 0:02:33.2]} 17... Bb5 {[%clk
0:02:18.2]} 18. Rfd1 {[%clk 0:02:31.5]} 18... Rxc1 {[%clk 0:02:17.3]} 19. Rxc1
{[%clk 0:02:31.1]} 19... Rc8 {[%clk 0:02:17.8]} 20. a4 {[%clk 0:02:27.2]} 20...
Rxc1+ {[%clk 0:02:16]} 21. Qxc1 {[%clk 0:02:26.9]} 21... Bd7 {[%clk 0:02:15.4]}
22. Qc3 {[%clk 0:02:23.5]} 22... Qc8 {[%clk 0:02:11.7]} 23. Qb4 {[%clk
0:02:18.8]} 23... Qc7 {[%clk 0:01:54.2]} 24. h4 {[%clk 0:02:17.1]} 24... Nc8
{[%clk 0:01:54]} 25. Bf1 {[%clk 0:02:06.4]} 25... a5 {[%clk 0:01:44.5]} 26. Qd2
{[%clk 0:02:03.2]} 26... b6 {[%clk 0:01:37.1]} 27. Ba6 {[%clk 0:02:00.4]} 27...
h5 {[%clk 0:01:31.9]} 28. Qd3 {[%clk 0:01:58.9]} 28... Bf5 {[%clk 0:01:30.7]}
29. Qb5 {[%clk 0:01:54.4]} 29... Bd7 {[%clk 0:01:30]} 30. Qc4 {[%clk 0:01:51]}
30... Qxc4 {[%clk 0:01:25.5]} 31. Bxc4 {[%clk 0:01:51.9]} 31... Na7 {[%clk
0:01:21.7]} 32. Bd2 {[%clk 0:01:48]} 32... Bxd4 {[%clk 0:01:19.8]} 33. Nd3
{[%clk 0:01:46]} 33... Bg7 {[%clk 0:01:15.2]} 34. Kf1 {[%clk 0:01:39.8]} 34...
Bf5 {[%clk 0:01:10.7]} 35. Ke2 {[%clk 0:01:38.2]} 35... Nc8 {[%clk 0:01:08.8]}
36. Bb5 {[%clk 0:01:36.1]} 36... Bd4 {[%clk 0:01:05.5]} 37. f3 {[%clk 0:01:32]}
37... e6 {[%clk 0:01:00.6]} 38. dxe6 {[%clk 0:01:27.1]} 38... Bxe6 {[%clk
0:00:58.3]} 39. Ba6 {[%clk 0:01:18.6]} 39... Ne7 {[%clk 0:00:51.6]} 40. b4
{[%clk 0:01:18.5]} 40... axb4 {[%clk 0:00:48.2]} 41. Nxb4 {[%clk 0:01:18.7]}
41... Nd5 {[%clk 0:00:43.4]} 42. Nc6 {[%clk 0:01:11.8]} 42... Bc5 {[%clk
0:00:41.3]} 43. Kd3 {[%clk 0:01:08]} 43... Kf8 {[%clk 0:00:40.8]} 44. Bg5 {[%clk
0:01:07]} 44... f6 {[%clk 0:00:39.3]} 45. Bh6+ {[%clk 0:01:04.9]} 45... Ke8
{[%clk 0:00:34.5]} 46. Bd2 {[%clk 0:01:03.2]} 46... Bd7 {[%clk 0:00:33.7]} 47.
Bb5 {[%clk 0:00:59.2]} 47... Nc7 {[%clk 0:00:33.5]} 48. Ke4 {[%clk 0:00:56.7]}
48... Nxb5 {[%clk 0:00:32.4]} 49. axb5 {[%clk 0:00:57.6]} 49... Be6 {[%clk
0:00:31.8]} 50. Bh6 {[%clk 0:00:54]} 50... Kd7 {[%clk 0:00:30.5]} 51. Bg7 {[%clk
0:00:51.3]} 51... f5+ {[%clk 0:00:27.8]} 52. Kd3 {[%clk 0:00:51.7]} 52... Bd5
{[%clk 0:00:25]} 53. Nb8+ {[%clk 0:00:45.1]} 53... Kc8 {[%clk 0:00:20.5]} 54.
Na6 {[%clk 0:00:43.1]} 54... Bxf3 {[%clk 0:00:20.4]} 55. Nxc5 {[%clk 0:00:40.3]}
55... dxc5 {[%clk 0:00:20.6]} 56. Ke3 {[%clk 0:00:38.5]} 56... Bg2 {[%clk
0:00:19.1]} 57. Kf4 {[%clk 0:00:39.4]} 57... Bf1 {[%clk 0:00:18.8]} 58. Kg5
{[%clk 0:00:39.3]} 58... Bxb5 {[%clk 0:00:19.4]} 59. Kxg6 {[%clk 0:00:38.4]}
59... Be2 {[%clk 0:00:19.8]} 60. Kxf5 {[%clk 0:00:38.3]} 60... Bg4+ {[%clk
0:00:20.1]} 61. Ke5 {[%clk 0:00:38.1]} 61... Kb7 {[%clk 0:00:20.7]} 62. Kd5
{[%clk 0:00:37.9]} 62... Bf3+ {[%clk 0:00:20.2]} 63. Kd6 {[%clk 0:00:37.2]}
63... Ka6 {[%clk 0:00:18.5]} 64. Bc3 {[%clk 0:00:32]} 64... Kb5 {[%clk
0:00:18.4]} 65. Kc7 {[%clk 0:00:31.9]} 65... Kc4 {[%clk 0:00:17.9]} 66. Be5
{[%clk 0:00:31.1]} 66... b5 {[%clk 0:00:17.9]} 67. Kb6 {[%clk 0:00:32]} 67... b4
{[%clk 0:00:15.5]} 68. Bd6 {[%clk 0:00:31.5]} 68... b3 {[%clk 0:00:15.8]} 69.
Be5 {[%clk 0:00:31.9]} 69... Kb4 {[%clk 0:00:14.6]} 70. Bf6 {[%clk 0:00:20.4]}
70... c4 {[%clk 0:00:14.7]} 71. Be7+ {[%clk 0:00:20.6]} 71... Ka4 {[%clk
0:00:14.8]} 72. Bf6 {[%clk 0:00:16.7]} 72... Ka3 {[%clk 0:00:15]} 73. Kc5 {[%clk
0:00:15.4]} 73... Be2 {[%clk 0:00:15.5]} 74. g4 {[%clk 0:00:12.2]} 74... b2
{[%clk 0:00:15.7]} 75. Bxb2+ {[%clk 0:00:11.3]} 75... Kxb2 {[%clk 0:00:15.5]}
76. gxh5 {[%clk 0:00:11.7]} 76... Kc3 {[%clk 0:00:15.2]} 77. h6 {[%clk
0:00:12.6]} 77... Bd3 {[%clk 0:00:15.1]} 78. Kd5 {[%clk 0:00:12.5]} 78... Bh7
{[%clk 0:00:15.4]} 79. Ke6 {[%clk 0:00:12.4]} 79... Kd3 {[%clk 0:00:16.1]} 80.
Kf6 {[%clk 0:00:13.3]} 80... c3 {[%clk 0:00:16.4]} 81. Kg7 {[%clk 0:00:14.2]}
81... Be4 {[%clk 0:00:16.6]} 82. h7 {[%clk 0:00:14.6]} 82... Bxh7 {[%clk
0:00:16.8]} 83. Kxh7 {[%clk 0:00:14.9]} 83... c2 {[%clk 0:00:17.5]} 84. h5
{[%clk 0:00:14.9]} 84... c1=Q {[%clk 0:00:17.5]} 85. h6 {[%clk 0:00:15.8]} 85...
Qg5 {[%clk 0:00:17.2]} 86. Kh8 {[%clk 0:00:15]} 86... Qxh6+ {[%clk 0:00:17.5]}
87. Kg8 {[%clk 0:00:15.9]} 87... Kd4 {[%clk 0:00:17.9]} 88. Kf7 {[%clk
0:00:16.8]} 88... Kd5 {[%clk 0:00:18]} 89. Ke7 {[%clk 0:00:16.8]} 89... Qg7+
{[%clk 0:00:17.5]} 90. Kd8 {[%clk 0:00:17.7]} 90... Kd6 {[%clk 0:00:13.5]} 91.
Kc8 {[%clk 0:00:18.6]} 91... Qc7# {[%clk 0:00:12.9]} 0-1